Cogmind - Beta 17 @@@ ROGUE MODE // 2026.08.10 @ 02:19:11 Player: Momo Result: Defending 0bPrime! Performance ------------- Evolutions (8) 4000 Regions Visited (25) 5000 Robots Destroyed (186) 930 Value Destroyed (7396) 7396 Prototype IDs (93) 1860 Alien Tech Used (4) 800 Bonus (22313) 22313 TOTAL SCORE: 42299 Bonus ------- High Alert Combat Kills 283 Follower Combat Kills 2641 Hunted by Unchained 500 Network Hubs Disabled 200 Registered with UFD 300 Met Optimus in HQ 500 Met Zhirov 300 Met Warlord at Base 500 MAIN.C Attacked Warlord 500 Built Enhanced Grunts 300 A7 Reached Mainframe 300 Met R17 at Cetus 500 Hacked Protovariant 500 Met R17 at Research 2000 Scanned by Researcher 500 Met Optimus at Protoforge 1000 Executed Drillbomb Mission 10000 Win 3000 Friendly Fire -1511 Cogmind --------- Core Integrity 1310/1450 Matter 243/300 Energy 200/200 System Corruption 2% Temperature Cool (0) Movement Flying (14) Location 0bPrime Parts ------- > --- POWER (1+2) ------ Micro Antimatter Reactor Micro Antimatter Reactor (+) > --- PROPULSION (8) --- Q-thruster Improved Diametric Drive Improved Diametric Drive Cooled Impulse Thruster Impulse Thruster Array Experimental Surge Thruster Experimental Surge Thruster > --- UTILITY (11) ----- Experimental Heat Sink Medium Storage Unit Experimental Optical Array Experimental Targeting Computer Experimental Core Analyzer Experimental Armor Integrity Analyzer Experimental Reaction Control System Advanced Phase Shifter Enhanced Scrap Shield Power Bank > --- WEAPON (3) ------- Improved KE Penetrator Nanosword (fused) > --- INVENTORY (10) --- Advanced Sensor Array Peak State ------------ > --- POWER ------------ Micro Antimatter Reactor Micro Antimatter Reactor > --- PROPULSION ------- Q-thruster Q-thruster Electron Diverter Improved Diametric Drive Improved Diametric Drive Cooled Impulse Thruster Experimental Surge Thruster Experimental Surge Thruster > --- UTILITY ---------- Experimental Heat Sink Medium Storage Unit Experimental Optical Array Advanced Sensor Array Experimental Signal Interpreter Experimental Armor Integrity Analyzer Experimental Reaction Control System Advanced Phase Shifter Enhanced Scrap Shield Power Bank > --- WEAPON ----------- Nanosword Experimental Terror Saw > --- INVENTORY -------- UFD Drillbomb [Rating: 198] Favorites ----------- Power Micro Antimatter Reactor Engine Ion Engine Power Core Micro Fission Core Reactor Micro Antimatter Reactor Propulsion Gravmag Array Treads Light Treads Leg Flexi-carbon Leg Wheel Wheel Hover Unit Gravmag Array Flight Unit Improved Diametric Drive Utility Improved Hacking Suite Device Advanced Sensor Array Storage Medium Storage Unit Processor Advanced Signal Interpreter Hackware Improved Hacking Suite Protection Enhanced Scrap Shield Artifact Phase Armor Weapon Makeshift Spear Energy Gun Advanced Variable Charge Gun Energy Cannon Ion Burst Cannon Ballistic Gun Advanced KE Penetrator Ballistic Cannon Heavy Flak Cannon Launcher Grenade Launcher Special Weapon CPS Tube Impact Weapon Impact Mace Slashing Weapon Nanosword Piercing Weapon Makeshift Spear Build | -11 -10 -10 -8 -6 -6 -6 -6 -6 -5 -5 -5 -5 -5 -5 -4 -4 -4 -4 -4 -3 -3 -3 -2 -2 -2 ------- Run | Yrd Mat Sub Scr Fac Ext Cet Arc Hub Fac Was Fac Upp Upp War Pro Fac Upp Upp Zhi Pro Res Qua Res Tes Frg Slots Evolved 16 | . . . . 8 . . . . 2 . . . . . . 2 . . . . 2 . 2 . . Power . | . . . . . . . . . . . . . . . . . . . . . . . . . . Propulsion 6 | . . . . 4 . . . . . . . . . . . . . . . . 1 . 1 . . Utility 9 | . . . . 4 . . . . 2 . . . . . . 2 . . . . 1 . . . . Weapon 1 | . . . . . . . . . . . . . . . . . . . . . . . 1 . . Parts Attached 204 | 6 7 13 6 32 22 7 6 2 1 2 8 2 . 12 4 24 . 1 2 . 18 1 4 2 22 Power 19 | 1 . 1 3 4 1 1 . . . . . . . . 1 4 . . . . 1 . 1 . 1 Engine 7 | 1 . 1 2 2 . . . . . . . . . . . 1 . . . . . . . . . Core 6 | . . . 1 2 1 . . . . . . . . . . 1 . . . . . . . . 1 Reactor 6 | . . . . . . 1 . . . . . . . . 1 2 . . . . 1 . 1 . . Propulsion 50 | 2 1 6 . 10 10 1 1 . . . 1 . . 5 . 3 . . . . 7 . . . 3 Treads 2 | . . . . . 1 1 . . . . . . . . . . . . . . . . . . . Leg 8 | . . . . 2 6 . . . . . . . . . . . . . . . . . . . . Wheel 11 | 2 1 6 . 2 . . . . . . . . . . . . . . . . . . . . . Hover 8 | . . . . 4 3 . 1 . . . . . . . . . . . . . . . . . . Flight 21 | . . . . 2 . . . . . . 1 . . 5 . 3 . . . . 7 . . . 3 Utility 90 | 1 1 1 2 11 7 3 5 2 1 1 6 1 . 4 2 12 . 1 2 . 8 1 2 2 14 Device 41 | . . . 2 6 2 1 2 . 1 . 2 . . 2 1 4 . 1 1 . 4 . 1 1 10 Storage 6 | 1 . 1 . . 1 . 1 . . . . . . 1 . . . . . . 1 . . . . Processor 17 | . . . . 3 1 . . . . . . 1 . . . 5 . . . . 2 . 1 . 4 Hackware 14 | . . . . . 1 . 1 2 . . 4 . . . 1 2 . . 1 . 1 . . 1 . Protection 11 | . 1 . . 2 2 2 1 . . 1 . . . 1 . 1 . . . . . . . . . Artifact 1 | . . . . . . . . . . . . . . . . . . . . . . 1 . . . Weapon 45 | 2 5 5 1 7 4 2 . . . 1 1 1 . 3 1 5 . . . . 2 . 1 . 4 Energy Gun 9 | 1 4 . . . . 1 . . . . . . . 1 . . . . . . 1 . . . 1 Energy Cannon 4 | . . 1 . 1 . . . . . 1 . . . . . . . . . . . . . . 1 Ballistic Gun 4 | 1 . . . . 1 1 . . . . . . . . . . . . . . . . . . 1 Ballistic Cannon 8 | . . . . 4 2 . . . . . . . . . 1 1 . . . . . . . . . Launcher 8 | . 1 3 1 1 . . . . . . 1 . . . . 1 . . . . . . . . . Special Weapon 1 | . . . . 1 . . . . . . . . . . . . . . . . . . . . . Impact Weapon 1 | . . . . . . . . . . . . . . . . 1 . . . . . . . . . Slashing Weapon 5 | . . . . . 1 . . . . . . 1 . . . 1 . . . . 1 . . . 1 Piercing Weapon 5 | . . 1 . . . . . . . . . . . 2 . 1 . . . . . . 1 . . Special Melee Weapon . | . . . . . . . . . . . . . . . . . . . . . . . . . . Unidentified Prototypes 50 | . . . . 2 . 4 2 . . 1 1 . . 7 . 4 . . 2 . 8 3 2 1 13 Corrupted Parts 1 | . . . . 1 . . . . . . . . . . . . . . . . . . . . . System Corruption 4 | . . . . 4 . . . . . . . . . . . . . . . . . . . . . Parts Lost 61 | . 2 9 . 14 7 . . 2 . . . . . . 6 10 . . . 4 2 . 3 . 2 Power 8 | . . 1 . 2 2 . . . . . . . . . 1 2 . . . . . . . . . Propulsion 21 | . 1 4 . 6 3 . . . . . . . . . 2 2 . . . . 2 . . . 1 Utility 21 | . . 1 . 2 2 . . 2 . . . . . . 2 5 . . . 3 . . 3 . 1 Weapon 11 | . 1 3 . 4 . . . . . . . . . . 1 1 . . . 1 . . . . . Highest Loss Streak 5 | . 1 4 . 3 2 . . 1 . . . . . . 5 5 . . . 4 2 . 3 . 1 To Critical Strikes . | . . . . . . . . . . . . . . . . . . . . . . . . . . Average Backups 8 | . 4 10 10 12 11 6 8 9 8 7 8 7 8 7 7 8 9 8 9 8 9 9 7 8 1 Power . | . . . . . . . . . . . . . . . 1 . . . . . . . . . . Propulsion . | . . . 1 . . 1 1 1 1 1 3 2 3 1 . . . . . . . 1 . . . Utility 4 | . 2 4 4 7 7 3 6 8 7 5 3 3 4 4 3 3 4 4 4 3 4 2 . 1 . Weapon 1 | . 1 3 1 . 1 . . . . . . . 1 1 3 4 5 4 4 4 3 3 1 1 . Tool/Special . | . . . . . . . . . . . . . . . . . . . . . . . . . . Unused Backups 55 | . 1 5 . 4 8 5 2 1 . . 4 . . 2 1 3 . 1 . . 6 3 . 2 7 Power 6 | . . . . . . 1 1 . . . . . . . . 2 . . . . 2 . . . . Propulsion 5 | . . 1 . . . 2 . . . . 2 . . . . . . . . . . . . . . Utility 25 | . . 2 . 2 6 1 . . . . 2 . . 2 1 1 . . . . 4 2 . 1 1 Weapon 11 | . 1 2 . 1 1 1 1 1 . . . . . . . . . 1 . . . 1 . 1 . Tool/Special 8 | . . . . 1 1 . . . . . . . . . . . . . . . . . . . 6 Average Slot Usage (%) 81 | . 89 90 83 68 82 74 78 80 60 79 82 82 82 89 83 74 78 78 78 69 78 89 83 84 79 Engine 4 | . 14 13 13 2 . . . . . . . . . . . . . . . . . . . . . Core 1 | . . . . 1 5 1 . . . . . . . . . 4 5 5 5 5 1 . . . . Reactor 2 | . . . . . . 4 6 6 5 5 5 5 5 5 4 . . . . . 2 4 6 7 7 Wheel 7 | . 24 24 24 6 . . . . . . . . . . . . . . . . . . . . . Hover 5 | . . . . 6 14 19 20 20 13 17 17 17 17 5 . . . . . . . . . . . Flight 7 | . . . . 3 . . . . . . . . . 19 20 15 15 15 15 15 21 28 26 26 27 Device 6 | . . . 1 14 9 6 6 2 5 5 4 5 5 4 4 8 15 15 15 10 8 8 7 7 16 Storage 7 | . 14 14 14 5 6 6 8 6 5 5 5 5 5 5 5 5 5 5 5 5 4 4 3 3 3 Processor 5 | . . . . 9 14 13 7 6 5 5 1 5 5 5 2 10 10 10 8 5 4 9 10 7 12 Hackware 10 | . . . . . 4 2 2 16 11 11 32 29 29 29 32 23 21 21 22 23 21 19 12 14 2 Protection 3 | . 8 8 . . 2 5 11 6 5 15 1 . . . . . . . . 1 3 4 2 3 3 Energy Gun 3 | . 18 9 . . . 4 6 6 5 5 5 5 5 2 . . . . . . . . . . . Launcher 4 | . 4 13 14 1 . . . . . . 3 . . . . . . . . . . . 2 3 . Slashing Weapon 1 | . . . . . 1 . . . . . . 4 5 2 . 2 5 5 5 2 3 4 3 3 3 Piercing Weapon 3 | . . 3 14 2 2 . . . . . . . . 4 7 1 . . . . 2 4 3 3 . Peak Build Rating 198 | 6 9 19 28 82 80 97 102 99 82 103 103 94 91 109 106 114 106 106 107 105 157 170 187 185 198 Average Rating 79 | 4 7 13 21 72 73 87 98 92 76 100 98 91 91 100 96 100 106 104 103 89 125 153 178 184 178 On Entrance 88 | . 6 9 18 28 66 76 93 99 78 82 103 95 91 91 106 85 106 106 104 103 81 151 156 182 185 Avg Prop Armor Cover (%) 5 | . . 3 5 7 7 . . . . . . . . . . . . . . . 1 . . . 2 Naked Turns . | . . . . . . . . . . . . . . . . . . . . . . . . . . Heaviest Build 84 | 14 19 41 43 50 55 56 60 56 43 64 64 48 40 40 39 37 26 26 25 30 44 40 58 58 84 Greatest Support 112 | 26 26 40 30 50 112 60 60 60 60 60 60 60 60 60 42 45 30 30 30 30 69 53 65 65 63 Greatest Overweight (x) 11 | . 1 11 4 4 2 1 . . 1 1 1 . . . 1 1 . . . . 1 . 1 . 1 Average Overweight (x) . | . . 1 2 1 . . . . . . . . . . . . . . . . . . . . . Largest Inventory Capacity 15 | 8 8 15 15 15 15 10 10 10 10 10 10 10 10 10 10 10 10 10 10 10 10 10 10 10 10 Average Capacity 11 | 7 8 13 15 15 14 10 10 10 10 10 10 10 10 10 10 10 10 10 10 10 10 10 10 10 10 Most Carried 15 | . 7 15 15 15 15 10 10 10 9 9 10 10 10 10 10 10 10 10 10 10 10 10 10 10 10 Average Carried 10 | . 4 13 14 14 14 9 9 9 9 8 9 9 10 9 9 9 10 9 9 9 9 9 7 9 5 Final Capacity 15 | 8 8 15 15 15 10 10 10 10 10 10 10 10 10 10 10 10 10 10 10 10 10 10 10 10 10 Final Carried 15 | . 7 13 15 15 10 10 10 10 9 9 10 10 10 10 10 10 10 10 10 8 10 10 8 10 1 Transmogrified Parts 12 | . . . . 2 10 . . . . . . . . . . . . . . . . . . . . Integrity Recovered 274 | . . . . 8 266 . . . . . . . . . . . . . . . . . . . . Class Distribution -------------------- 38% | Mutant 15% | Hacker-Sprinter 13% | Commander-Mutant 11% | Wizard-Mutant 7% | Wizard-Sprinter 4% | Scavenger-Scout 4% | Scavenger-Mutant Dominant Class ---------------- Mutant | -10/Materials Mutant | -10/Subcaves Mutant | -8/Scraptown Mutant | -6/Factory Commander-Mutant | -6/Extension Commander-Mutant | -6/Cetus Commander-Mutant | -6/Archives Commander-Mutant | -6/Hub_04(d) Scavenger-Mutant | -5/Factory Scavenger-Mutant | -5/Waste Wizard-Mutant | -5/Factory Wizard-Mutant | -5/Upper Caves Wizard-Mutant | -5/Upper Caves Wizard-Sprinter | -5/Warlord Wizard-Mutant | -4/Proximity Caves Hacker-Sprinter | -4/Factory Hacker-Sprinter | -4/Upper Caves Hacker-Sprinter | -4/Upper Caves Hacker-Sprinter | -4/Zhirov Hacker-Sprinter | -3/Proximity Caves Wizard-Sprinter | -3/Research Hacker-Sprinter | -3/Quarantine Hacker-Sprinter | -2/Research Hacker-Sprinter | -2/Testing Scavenger-Scout | -2/Protoforge Resources | -11 -10 -10 -8 -6 -6 -6 -6 -6 -5 -5 -5 -5 -5 -5 -4 -4 -4 -4 -4 -3 -3 -3 -2 -2 -2 ----------- Run | Yrd Mat Sub Scr Fac Ext Cet Arc Hub Fac Was Fac Upp Upp War Pro Fac Upp Upp Zhi Pro Res Qua Res Tes Frg Matter Collected 6532 | 166 264 626 163 758 809 747 562 235 20 30 110 30 . 67 329 480 59 18 . . 380 80 168 47 384 Remotely . | . . . . . . . . . . . . . . . . . . . . . . . . . . Salvage Created 8402 | . 419 473 . 1092 1151 60 220 467 60 113 400 . . . 284 1431 . . . . 1140 151 354 220 367 Parts 400 | . 27 37 . 58 45 2 19 18 4 . 11 . . . 9 65 . . . . 38 5 29 17 16 Haulers Intercepted 13 | . 2 . . . 1 . . . . . 2 . . . . 3 . . . . 4 1 . . . Recyclers Shooed 7 | . 1 . . 3 1 . . . . . 2 . . . . . . . . . . . . . . Parts Field Recycled . | . . . . . . . . . . . . . . . . . . . . . . . . . . Retrieved Matter . | . . . . . . . . . . . . . . . . . . . . . . . . . . Parts Self-Destructed 30 | . . 19 . . . . . . . . . . . . 4 . . . . 7 . . . . . Prevented 7 | . . 2 . . . . . . . . . . . . 5 . . . . . . . . . . Parts Restored 1 | . . . . . . . . . . . 1 . . . . . . . . . . . . . . Broken 1 | . . . . . . . . . . . 1 . . . . . . . . . . . . . . Kills | -11 -10 -10 -8 -6 -6 -6 -6 -6 -5 -5 -5 -5 -5 -5 -4 -4 -4 -4 -4 -3 -3 -3 -2 -2 -2 ------- Run | Yrd Mat Sub Scr Fac Ext Cet Arc Hub Fac Was Fac Upp Upp War Pro Fac Upp Upp Zhi Pro Res Qua Res Tes Frg Combat Hostiles Destroyed 104 | . 10 20 . 26 13 1 . . 1 1 2 . . . 4 9 . . . . 6 . 6 1 4 Melee 28 | . . 1 . 2 3 . . . . . . . . . 3 9 . . . . 4 . 3 1 2 Guns 13 | . 4 3 . . 1 . . . 1 1 . . . . . . . . . . 1 . . . 2 Cannons 24 | . . 1 . 13 9 1 . . . . . . . . . . . . . . . . . . . AOE 37 | . 6 15 . 10 . . . . . . 2 . . . 1 . . . . . . . 3 . . Classes Destroyed 21 | . 4 3 . 7 1 . . 1 1 1 . . . . . . . . . . 1 . . 1 1 Worker 8 | . . . . 2 . . . 3 . . 1 . . . . 2 . . . . . . . . . Builder 13 | . . . . 5 . . . . . . 2 . . . . 1 . . . . 1 . 1 3 . Tunneler 5 | . . . . 2 . . . . . . . . . . . 3 . . . . . . . . . Hauler 13 | . 2 . . . 1 . . . . . 2 . . . . 3 . . . . 4 1 . . . Recycler 6 | . . . . . 3 . . . . . . . . . . 2 . . . . 1 . . . . Operator 12 | . 1 . . . . . 6 1 . . . . . . . 2 . . . . . . . 1 1 Watcher 14 | . . . . 1 1 . . . . . 1 . . . . 2 . . . . 3 2 1 1 2 Swarmer 14 | . 3 5 . 2 . . . . . . . . . . . . . . . . . . 4 . . Grunt 47 | . 7 2 . 18 8 . . . . . 2 . . . 3 4 . . . . 1 . . 1 1 Brawler 2 | . . . . 1 1 . . . . . . . . . . . . . . . . . . . . Duelist 3 | . . . . 1 1 . . . . . . . . . 1 . . . . . . . . . . Researcher 2 | . . . . . . . . . . . . . . . . . . . . . . . . 2 . Sentry 9 | . . 1 . 2 3 . . . . . . . . . . 2 . . . . 1 . . . . Hunter 7 | . . . . . . . . . 1 . . . . . . 2 . . . . 3 . 1 . . Programmer 9 | . . . . 2 . . . . . . . . . . . 2 . . . . . . 3 . 2 Behemoth 1 | . . . . . . . . . . . . . . . . . . . . . 1 . . . . Compactor 1 | . . . . . . . . . . 1 . . . . . . . . . . . . . . . Cetus Guard 1 | . . . . . . 1 . . . . . . . . . . . . . . . . . . . Striker 1 | . . . . . . . . . . . . . . . . . . . . . . . . . 1 Artisan 1 | . . 1 . . . . . . . . . . . . . . . . . . . . . . . Subdweller 12 | . . 12 . . . . . . . . . . . . . . . . . . . . . . . Scrapoid 4 | . . . . . . . . 4 . . . . . . . . . . . . . . . . . Thug 1 | . . . . . . . . 1 . . . . . . . . . . . . . . . . . Butcher 1 | . . . . . 1 . . . . . . . . . . . . . . . . . . . . Best Kill Streak 9 | . 3 4 . 9 4 1 2 4 1 1 4 . . . 4 5 . . . . 2 2 4 5 2 Combat Bots Only 6 | . 3 4 . 6 4 1 . . 1 1 2 . . . 4 3 . . . . 1 . 4 1 2 Max Kills in Single Turn 8 | . 2 3 . 5 1 1 1 8 1 1 3 . . . 1 2 . . . . 1 1 3 2 1 Gunslinging . | . . . . . . . . . . . . . . . . . . . . . . . . . . Exploded 3 | . 2 3 . 3 . . . . . . 1 . . . 1 . . . . . . . 2 . . Melee 1 | . . 1 . 1 1 . . . . . . . . . 1 1 . . . . 1 . 1 1 1 Uniques/NPCs Destroyed . | . . . . . . . . . . . . . . . . . . . . . . . . . . Combat | -11 -10 -10 -8 -6 -6 -6 -6 -6 -5 -5 -5 -5 -5 -5 -4 -4 -4 -4 -4 -3 -3 -3 -2 -2 -2 -------- Run | Yrd Mat Sub Scr Fac Ext Cet Arc Hub Fac Was Fac Upp Upp War Pro Fac Upp Upp Zhi Pro Res Qua Res Tes Frg Hostile Shots Fired 952 | . 26 56 . 227 197 . 4 47 6 . 7 . . 3 32 80 . 7 . 34 60 6 36 15 109 Missed 423 | . 7 17 . 76 85 . 2 16 2 . 5 . . 3 14 39 . 4 . 14 31 3 26 6 73 Hits 529 | . 19 39 . 151 112 . 2 31 4 . 2 . . . 18 41 . 3 . 20 29 3 10 9 36 Melee 12 | . . . . 3 3 . . 1 . . . . . . 3 . . . . . . . . . 2 Projectile 517 | . 19 39 . 148 109 . 2 30 4 . 2 . . . 15 41 . 3 . 20 29 3 10 9 34 AOE 7 | . . 1 . . . . . . 1 . . . . . . 1 . . . 4 . . . . . Critical Strikes 28 | . 1 . . 8 6 2 . 1 . . . . . . 2 3 . . . 1 . . . 1 3 Part Disruptions 3 | . . . . 1 . . . . . . . . . . . 1 . . . . . . . . 1 Damage Taken 10386 | . 291 899 . 2387 1497 55 48 442 99 . 49 . . . 673 836 . 43 . 625 647 71 367 194 1163 Core 1697 | . 32 166 . 302 282 28 . 92 30 . 3 . . . 202 127 . . . 69 224 . 46 . 94 Absorbed by Shields 152 | . . . . . 22 52 . . . . . . . . . . . . . 28 38 . . . 12 Ignored by Resistances 190 | . . . . 161 . . . . . . . . . . . . . . . . 29 . . . . Regen/Repaired (Parts) 1175 | . . . . . . . . . 159 613 138 . . 30 . 180 . . . . 55 . . . . Core Remaining (%) 65 | 100 . . 20 . . . . 17 . . . . . . 76 . . . . 82 . 76 . . 90 Volleys Fired 506 | . 42 56 . 77 70 23 39 22 10 6 39 4 14 1 44 29 . . . . 8 . 4 5 13 Largest 2 | . 2 2 . 2 2 2 2 2 1 2 2 1 1 1 1 1 . . . . 1 . 1 1 1 Hottest 320 | . 90 90 . 144 100 275 115 275 80 185 320 80 80 240 80 55 . . . . 225 . 43 43 33 Shots Fired 602 | . 65 61 . 106 88 27 48 26 10 9 40 4 14 1 44 29 . . . . 8 . 4 5 13 Gun 268 | . 55 23 . . 16 7 48 26 10 5 38 4 14 1 . . . . . . 8 . . . 13 Cannon 269 | . . 8 . 94 72 20 . . . 4 . . . . 42 29 . . . . . . . . . Launcher 64 | . 10 30 . 11 . . . . . . 2 . . . 2 . . . . . . . 4 5 . Special 1 | . . . . 1 . . . . . . . . . . . . . . . . . . . . . Kinetic 333 | . 28 7 . 82 53 22 37 20 . . . . . . 42 29 . . . . . . . . 13 Thermal 161 | . . 8 . 12 35 5 11 6 10 9 38 4 14 1 . . . . . . 8 . . . . Explosive 50 | . 10 23 . 8 . . . . . . . . . . . . . . . . . . 4 5 . Electromagnetic 57 | . 27 23 . 3 . . . . . . 2 . . . 2 . . . . . . . . . . Robot Hit Streak 23 | . 6 23 . 9 8 2 3 5 3 5 9 . . . 12 4 . . . . 5 . 2 1 3 Robot Miss Streak 8 | . 7 1 . 8 8 2 4 2 2 1 2 . . . 1 . . . . . 1 . 2 2 5 Penetration Max 1 | . . . . . 1 . 1 1 . . . . . . . . . . . . . . . . . Secondary Targets 2 | . 2 . . . . . . . . . . . . . . . . . . . . . . . . Max Gunslinging Chain 1 | . 1 . . . . . . . . . . . . . . . . . . . . . . . . Shots Hit Robots 446 | . 35 47 . 86 89 4 18 9 3 7 23 . . . 9 48 . . . . 27 4 12 6 19 Core Hits 386 | . 22 34 . 104 90 1 12 13 2 1 23 . . . 8 26 . . . . 13 3 12 12 10 Critical Kills 6 | . 1 . . . 1 . 4 . . . . . . . . . . . . . . . . . . Critical Parts Destroyed 3 | . . . . . . . 2 . . . . . . . . . . . . . . . . . 1 Critical Strikes 41 | . 2 . . 2 3 . 6 1 . . . . . . 3 12 . . . . 2 1 5 1 3 Destroy 10 | . 1 . . . 1 . 6 1 . . . . . . . . . . . . . . . . 1 Corrupt 1 | . 1 . . . . . . . . . . . . . . . . . . . . . . . . Sever 10 | . . . . . 1 . . . . . . . . . . 6 . . . . 1 1 1 . . Impale 3 | . . . . 2 1 . . . . . . . . . . . . . . . . . . . . Sunder 17 | . . . . . . . . . . . . . . . 3 6 . . . . 1 . 4 1 2 Melee Attacks 371 | . . 8 . 32 20 . . . . . . 5 5 . 12 99 . 13 . 4 50 25 33 22 43 Impact 1 | . . . . . . . . . . . . . . . . 1 . . . . . . . . . Slashing 249 | . . . . . 7 . . . . . . 5 5 . . 72 . 13 . 4 45 23 23 16 36 Piercing 53 | . . 8 . 32 13 . . . . . . . . . . . . . . . . . . . . Entropic 68 | . . . . . . . . . . . . . . . 12 26 . . . . 5 2 10 6 7 Sneak Attacks 34 | . . 2 . 3 4 . . . . . . . . . 1 10 . . . . 10 1 3 . . Combat Hostiles 2 | . . . . . . . . . . . . . . . . . . . . . 2 . . . . Follow-up Attacks 8 | . . . . . 1 . . . . . . . . . . . . . . . 3 2 2 . . Damage Inflicted 26634 | . 833 2253 . 4115 2769 124 680 1628 77 246 1103 . . . 1181 5209 . . . . 2474 396 1399 940 1207 Guns 3212 | . 443 236 . . 269 50 680 435 77 104 648 . . . . . . . . . 86 . . . 184 Cannons 4149 | . . 219 . 1744 1819 74 . . . 142 . . . . . 151 . . . . . . . . . Explosions 7231 | . 390 1643 . 1806 . . . 1191 . . 455 . . . 424 396 . . . . . . 502 424 . Melee 12006 | . . 155 . 565 647 . . . . . . . . . 757 4662 . . . . 2388 396 897 516 1023 Ramming 36 | . . . . . 34 . . 2 . . . . . . . . . . . . . . . . . Kinetic 4645 | . 211 761 . 1452 1028 62 546 250 . . . . . . . 151 . . . . . . . . 184 Thermal 3716 | . 20 219 . 789 1060 62 134 185 77 246 677 . . . 161 . . . . . 86 . . . . Explosive 3554 | . 370 882 . 1138 . . . . . . . . . . . 238 . . . . . . 502 424 . Electromagnetic 2677 | . 232 236 . 171 . . . 1191 . . 426 . . . 263 158 . . . . . . . . . Impact . | . . . . . . . . . . . . . . . . . . . . . . . . . . Slashing 6628 | . . . . . 255 . . . . . . . . . . 3148 . . . . 1998 309 347 . 571 Piercing 1112 | . . 155 . 565 392 . . . . . . . . . . . . . . . . . . . . Entropic 4266 | . . . . . . . . . . . . . . . 757 1514 . . . . 390 87 550 516 452 Highest Corruption 9 | . . . . 5 6 6 6 9 . . . . . . 6 . . . . 8 . . 1 1 2 Average Corruption 4 | . . . . 3 6 6 6 6 . . . . . . 2 . . . . 8 . . 1 1 1 Corruption Purged 4 | . . . . 4 . . . . . . . . . . . . . . . . . . . . . Corruption Blocked . | . . . . . . . . . . . . . . . . . . . . . . . . . . Effects 92 | . . . . . 31 14 11 8 . . . . . . 6 . . . . 1 . . . 5 16 Message Errors 18 | . . . . . 6 4 3 1 . . . . . . . . . . . . . . . 2 2 Matter Fused 23 | . . . . . 9 1 2 3 . . . . . . 3 . . . . . . . . . 5 Heat Flow Errors 13 | . . . . . 4 1 2 3 . . . . . . 1 . . . . . . . . 1 1 Energy Discharges 7 | . . . . . . 4 1 . . . . . . . . . . . . . . . . . 2 Parts Rejected 2 | . . . . . . . . 1 . . . . . . . . . . . 1 . . . . . Parts Fused 2 | . . . . . 1 . . . . . . . . . . . . . . . . . . . 1 Data Loss (minor) 10 | . . . . . 2 . . . . . . . . . 1 . . . . . . . . 2 5 Data Loss (major) 2 | . . . . . 1 1 . . . . . . . . . . . . . . . . . . . Misfires 5 | . . . . . 3 2 . . . . . . . . . . . . . . . . . . . Alerts 7 | . . . . . 4 1 1 . . . . . . . 1 . . . . . . . . . . Weapon Failures 3 | . . . . . 1 . 2 . . . . . . . . . . . . . . . . . . Overload Shots 11 | . . . . . . 1 . 4 . . 2 . . 1 . . . . . . 3 . . . . Effects 2 | . . . . . . . . . . . 1 . . . . . . . . . 1 . . . . Energy Bleed 2 | . . . . . . . . . . . 1 . . . . . . . . . 1 . . . . Overflow Damage 1994 | . 12 45 . 75 76 . . 101 . . . . . . 149 666 . . . . 460 . 193 80 137 Projectiles 17 | . . . . 17 . . . . . . . . . . . . . . . . . . . . . Explosions 339 | . 12 34 . 39 . . . 101 . . . . . . 62 . . . . . . . 73 18 . Melee 1638 | . . 11 . 19 76 . . . . . . . . . 87 666 . . . . 460 . 120 62 137 Knockbacks 27 | . . . . 18 9 . . . . . . . . . . . . . . . . . . . . Impact . | . . . . . . . . . . . . . . . . . . . . . . . . . . Kinetic 24 | . . . . 17 7 . . . . . . . . . . . . . . . . . . . . Secondary 3 | . . . . 1 2 . . . . . . . . . . . . . . . . . . . . Self-Inflicted Damage 859 | . 58 134 . 203 16 . . 96 . . . . . . 208 . . . . . . . 59 85 . Shots 33 | . 2 8 . 10 . . . 1 . . . . . . 9 . . . . . . . 1 2 . Rammed 5 | . . . . . 3 . . 1 . . . . . . . 1 . . . . . . . . . Targets Rammed 5 | . . . . . 3 . . 1 . . . . . . . 1 . . . . . . . . . Kicked . | . . . . . . . . . . . . . . . . . . . . . . . . . . Crushed . | . . . . . . . . . . . . . . . . . . . . . . . . . . Highest Temperature 648 | . 92 18 . 444 374 159 400 648 160 337 504 64 216 192 266 18 . . . . 316 . 461 316 215 Average Temperature 93 | . 33 11 . 106 78 40 151 248 74 202 132 33 88 19 27 7 . . . . 36 . 120 82 88 Received Heat Transfer 2683 | . 132 192 . 813 858 4 . 96 . . 18 . . . 60 144 . . . 27 96 . 36 36 171 Effects 32 | . . . . 3 3 . 3 15 . 2 4 . . . . . . . . . . . 2 . . Shutdowns 8 | . . . . 1 1 . 1 4 . . . . . . . . . . . . . . 1 . . Energy Bleed 3 | . . . . . 1 . 1 . . . 1 . . . . . . . . . . . . . . Interference 9 | . . . . 2 . . 1 2 . 2 2 . . . . . . . . . . . . . . Matter Decay 4 | . . . . . 1 . . 2 . . . . . . . . . . . . . . 1 . . Damage (minor) 4 | . . . . . . . . 3 . . 1 . . . . . . . . . . . . . . Damage (major) 4 | . . . . . . . . 4 . . . . . . . . . . . . . . . . . Siege Activations . | . . . . . . . . . . . . . . . . . . . . . . . . . . Martial Activations 2 | . . . . . 2 . . . . . . . . . . . . . . . . . . . . Total Turns 15 | . . . . . 15 . . . . . . . . . . . . . . . . . . . . Longest Duration 12 | . . . . . 12 . . . . . . . . . . . . . . . . . . . . Shielding Activations . | . . . . . . . . . . . . . . . . . . . . . . . . . . Robots Disrupted . | . . . . . . . . . . . . . . . . . . . . . . . . . . Combat Hostiles . | . . . . . . . . . . . . . . . . . . . . . . . . . . Robots Corrupted 2 | . . . . 1 . . . 1 . . . . . . . . . . . . . . . . . Combat Hostiles 1 | . . . . 1 . . . . . . . . . . . . . . . . . . . . . Parts Fried 9 | . 1 2 . 1 . . . 3 . . 1 . . . . 1 . . . . . . . . . Impact Corruptions . | . . . . . . . . . . . . . . . . . . . . . . . . . . Robots Melted 1 | . . . . . . . . . . . . . . . . . . . . . 1 . . . . Combat Hostiles 1 | . . . . . . . . . . . . . . . . . . . . . 1 . . . . Parts Melted 4 | . . . . . . . . . . . 2 . . . . . . . . . 2 . . . . Heat Transferred 4250 | . 50 296 . 750 1225 75 185 137 111 296 901 . . . 100 . . . . . 124 . . . . Parts Sabotaged . | . . . . . . . . . . . . . . . . . . . . . . . . . . Parts Stolen . | . . . . . . . . . . . . . . . . . . . . . . . . . . Parts Stripped . | . . . . . . . . . . . . . . . . . . . . . . . . . . Power Chain Reactions 3 | . 1 . . . . . . . . . 1 . . . 1 . . . . . . . . . . Alert | -11 -10 -10 -8 -6 -6 -6 -6 -6 -5 -5 -5 -5 -5 -5 -4 -4 -4 -4 -4 -3 -3 -3 -2 -2 -2 ------- Run | Yrd Mat Sub Scr Fac Ext Cet Arc Hub Fac Was Fac Upp Upp War Pro Fac Upp Upp Zhi Pro Res Qua Res Tes Frg Maximum Alert Level 4 | . . . . 2 3 3 2 3 1 . 4 . . . . 2 . . . . 1 . 2 2 3 Low Security (%) 39 | 100 100 . . 57 . . . 36 . 100 24 . . . . 64 . . . . 62 100 25 . . Level 1 30 | . . . . 26 51 . 97 13 100 . . . . . . 34 . . . . 37 . 70 63 15 Level 2 23 | . . . . 16 31 94 2 45 . . 10 . . . . . . . . . . . 4 36 80 Level 3 4 | . . . . . 17 5 . 5 . . 25 . . . . . . . . . . . . . 4 Level 4 2 | . . . . . . . . . . . 39 . . . . . . . . . . . . . . Level 5 . | . . . . . . . . . . . . . . . . . . . . . . . . . . High Security . | . . . . . . . . . . . . . . . . . . . . . . . . . . Max Security . | . . . . . . . . . . . . . . . . . . . . . . . . . . Peak Influence 1418 | . 141 . . 534 867 707 407 799 316 145 1418 . . . . 405 . . . . 276 124 442 611 835 Initial 478 | . . . . . 258 478 245 113 313 107 . . . . . . . . . . 13 29 56 243 295 Average 310 | . 41 . . 206 456 605 369 355 307 78 828 . . . . 171 . . . . 114 68 280 383 482 Influence Increases 10954 | . 349 210 . 1098 1377 405 299 827 33 68 1933 . . 60 90 1003 . 15 . 75 666 191 636 603 1016 Destroy 0b10 Robot/C 3320 | . 200 160 . 520 680 160 80 140 20 . 600 . . . 80 180 . . . 40 180 . 140 60 80 Destroy 0b10 Robot/NC 450 | . 15 . . 50 50 10 30 45 5 . 60 . . . . 75 . . . . 45 15 10 25 15 Destroy Leader 642 | . 54 20 . 112 74 . . 66 2 . 128 . . . 10 48 . . . . 64 6 32 2 24 Allied During Kill 1540 | . . . . . 529 166 110 250 2 . 459 . . . . . . . . 5 10 . 9 . . Trap Triggered on 0b10 10 | . . . . . . . . . . . . . . . . 10 . . . . . . . . . Successful Hack 574 | . 6 . . 66 22 . . . . . 39 . . . . 113 . . . . 111 11 99 32 75 Disable Machine 1005 | . 30 . . 105 15 15 45 210 . . 315 . . . . 135 . . . . . 45 . 75 15 Destroy Structure 1233 | . 44 . . 140 7 24 19 101 4 68 272 . . . . 172 . . . . 46 24 126 114 72 Partial Spotted 345 | . . . . 45 . . 15 15 . . . . . . . 15 . . . . 45 . 45 15 150 Lose Combat Pursuer 1635 | . . 30 . 60 . 30 . . . . 60 . . 60 . 255 . 15 . 30 165 90 75 180 585 Miscellaneous 200 | . . . . . . . . . . . . . . . . . . . . . . . 100 100 . Influence Decreases 10119 | . 264 206 89 570 1050 647 588 511 367 374 591 735 334 273 150 626 211 142 39 55 633 144 304 509 707 Entered New Map 3535 | . . 41 89 . 270 377 368 211 327 199 . 497 116 273 60 . 141 32 39 . 7 24 44 189 231 Time Decay 4427 | . 244 145 . 430 510 190 160 100 40 175 191 238 198 . 90 400 70 110 . 20 300 100 140 160 416 Lost Part 425 | . 20 20 . 140 70 . . 20 . . . . . . . 86 . . . . 19 . 30 . 20 Lost Ally 1119 | . . . . . 200 80 60 180 . . 250 . 20 . . 80 . . . 35 54 20 90 10 40 Purge Threat 613 | . . . . . . . . . . . 150 . . . . 60 . . . . 253 . . 150 . Squads Dispatched 82 | . 1 . . 13 6 . . 7 . . 7 . . . . 14 . . . . 12 2 9 4 7 Investigation 36 | . . . . 5 1 . . 1 . . 3 . . . . 6 . . . . 9 1 6 . 4 Extermination 12 | . . . . 2 . . . . . . 2 . . . . 4 . . . . 1 . 2 1 . Reinforcement 29 | . 1 . . 6 5 . . 2 . . 2 . . . . 4 . . . . 2 1 1 2 3 Assault 3 | . . . . . . . . 2 . . . . . . . . . . . . . . . 1 . Garrison 2 | . . . . . . . . 2 . . . . . . . . . . . . . . . . . Intercept . | . . . . . . . . . . . . . . . . . . . . . . . . . . Searches Triggered . | . . . . . . . . . . . . . . . . . . . . . . . . . . Construction Impeded 7 | . . . . 1 3 . . 1 . . 1 . . . . . . . . . . . . 1 . Haulers Reinforced 4 | . . . . 1 . . . . . . 1 . . . . 1 . . . . 1 . . . . Active Scanning Responses . | . . . . . . . . . . . . . . . . . . . . . . . . . . Cargo Convoy Interrupts . | . . . . . . . . . . . . . . . . . . . . . . . . . . Stealth | -11 -10 -10 -8 -6 -6 -6 -6 -6 -5 -5 -5 -5 -5 -5 -4 -4 -4 -4 -4 -3 -3 -3 -2 -2 -2 --------- Run | Yrd Mat Sub Scr Fac Ext Cet Arc Hub Fac Was Fac Upp Upp War Pro Fac Upp Upp Zhi Pro Res Qua Res Tes Frg Distress Signals 43 | . 2 . . 3 1 2 . 5 1 . 4 . . . . 8 . . . 2 4 . 1 1 9 Communications Jammed . | . . . . . . . . . . . . . . . . . . . . . . . . . . Distress Signals . | . . . . . . . . . . . . . . . . . . . . . . . . . . Times Spotted 469 | . 20 21 . 43 38 11 29 31 3 6 23 . . 6 4 36 . 1 . 8 28 8 34 16 103 Peak Tracking Total 20 | . 5 4 . 6 6 5 2 20 1 6 7 . . 5 4 8 . 1 . 8 6 4 13 7 16 Tactical Retreats 51 | . . 1 . 4 . 1 . . . . 1 . . 1 . 9 . 1 . 2 4 2 2 5 18 Traps | -11 -10 -10 -8 -6 -6 -6 -6 -6 -5 -5 -5 -5 -5 -5 -4 -4 -4 -4 -4 -3 -3 -3 -2 -2 -2 ------- Run | Yrd Mat Sub Scr Fac Ext Cet Arc Hub Fac Was Fac Upp Upp War Pro Fac Upp Upp Zhi Pro Res Qua Res Tes Frg Traps Triggered 23 | . . . . 5 7 . . . 1 . 1 . . . . . . . . 1 2 . 1 . 5 Indirectly 3 | . . . . 3 . . . . . . . . . . . . . . . . . . . . . Trap Hack Attempts . | . . . . . . . . . . . . . . . . . . . . . . . . . . Triggered . | . . . . . . . . . . . . . . . . . . . . . . . . . . Disarmed . | . . . . . . . . . . . . . . . . . . . . . . . . . . Reprogrammed 12 | . . . . . . . . . . . . . . . . 6 . . . . . . 6 . . Reused 1 | . . . . . . . . . . . . . . . . 1 . . . . . . . . . Traps Extracted . | . . . . . . . . . . . . . . . . . . . . . . . . . . Installed . | . . . . . . . . . . . . . . . . . . . . . . . . . . Triggered 1 | . . . . . . . . . . . . . . . . 1 . . . . . . . . . Objects Rigged 7 | . . . . . . . . . . . . . . . . 7 . . . . . . . . . Exploded 2 | . . . . . . . . . . . . . . . . 2 . . . . . . . . . Machines | -11 -10 -10 -8 -6 -6 -6 -6 -6 -5 -5 -5 -5 -5 -5 -4 -4 -4 -4 -4 -3 -3 -3 -2 -2 -2 ---------- Run | Yrd Mat Sub Scr Fac Ext Cet Arc Hub Fac Was Fac Upp Upp War Pro Fac Upp Upp Zhi Pro Res Qua Res Tes Frg Machines Disabled 72 | . 2 1 . 7 2 2 3 14 . . 21 . . 1 . 9 . . . . . 3 . 6 1 Max in Single Turn 11 | . 1 1 . 4 1 1 1 11 . . 1 . . 1 . 6 . . . . . 1 . 1 1 Garrison Access 1 | . . . . . . . . 1 . . . . . . . . . . . . . . . . . Network Hub 1 | . . . . . . . . 1 . . . . . . . . . . . . . . . . . Machines Repaired . | . . . . . . . . . . . . . . . . . . . . . . . . . . Machines Dismantled . | . . . . . . . . . . . . . . . . . . . . . . . . . . Machines Sabotaged . | . . . . . . . . . . . . . . . . . . . . . . . . . . Overloaded Fab Kills . | . . . . . . . . . . . . . . . . . . . . . . . . . . Hacking | -11 -10 -10 -8 -6 -6 -6 -6 -6 -5 -5 -5 -5 -5 -5 -4 -4 -4 -4 -4 -3 -3 -3 -2 -2 -2 --------- Run | Yrd Mat Sub Scr Fac Ext Cet Arc Hub Fac Was Fac Upp Upp War Pro Fac Upp Upp Zhi Pro Res Qua Res Tes Frg Machines Accessed 138 | . 6 2 8 13 13 1 . 3 1 . 9 . . 4 . 22 1 1 4 . 16 8 12 7 7 Terminals 71 | . 6 . . 3 13 1 . 2 . . 2 . . . . 11 1 . . . 7 7 9 5 4 Fabricators 10 | . . . . 2 . . . . . . 2 . . . . 2 . . . . 2 . 1 1 . Repair Stations 5 | . . . . . . . . . 1 . 2 . . . . 1 . . . . 1 . . . . Recycling Units 20 | . . . . 5 . . . . . . 2 . . . . 5 . . . . 4 . 1 . 3 Scanalyzers 6 | . . . . 2 . . . . . . 1 . . . . 1 . . . . . 1 . 1 . Garrison Access 7 | . . . . 1 . . . 1 . . . . . . . 2 . . . . 2 . 1 . . Total Hacks 531 | . 14 13 51 27 24 2 . 5 3 . 43 . . 8 . 112 2 1 17 . 65 31 54 33 26 Successful 343 | . 5 13 51 11 12 . . 2 3 . 30 . . 8 . 67 2 1 17 . 36 17 31 22 15 Failed 185 | . 8 . . 15 12 2 . 3 . . 12 . . . . 45 . . . . 29 14 23 11 11 Catastrophic 19 | . 1 . . 2 1 . . 1 . . 1 . . . . 2 . . . . 4 . 5 1 1 Database Lockouts 3 | . 1 . . 1 . . . . . . 1 . . . . . . . . . . . . . . Manual 226 | . 5 . . 23 5 1 . 5 1 . 22 . . . . 50 . . . . 36 19 29 17 13 Terminals 314 | . 14 . . 8 24 2 . 4 . . 21 . . . . 81 2 . . . 41 26 45 28 18 Fabricators 28 | . . . . 3 . . . . . . 5 . . . . 7 . . . . 9 . 2 2 . Repair Stations 14 | . . . . . . . . . 3 . 7 . . . . 2 . . . . 2 . . . . Recycling Units 49 | . . . . 13 . . . . . . 4 . . . . 13 . . . . 9 . 2 . 8 Scanalyzers 21 | . . . . 2 . . . . . . 6 . . . . 5 . . . . . 5 . 3 . Garrison Access 15 | . . . . 1 . . . 1 . . . . . . . 4 . . . . 4 . 5 . . Terminal Hacks 204 | . 5 13 51 1 10 . . 1 . . 5 . . 8 . 26 2 1 17 . 12 9 23 14 6 Record 76 | . . 12 46 . . . . . . . . . . 6 . . 2 . 5 . . 3 2 . . Part Schematic 4 | . . . . . . . . . . . . . . . . . . . 4 . . . . . . Robot Schematic 1 | . . . . . . . . . . . . . . . . . . . . . . . . . 1 Robot Analysis 13 | . 1 . 4 1 . . . . . . . . . . . 2 . . 4 . . . 1 . . Prototype ID Bank 9 | . 2 . . . . . . . . . . . . . . . . . 4 . 1 . 1 1 . Open Door 13 | . . . . . 10 . . . . . . . . 2 . . . 1 . . . . . . . Branch Access Points 6 | . . . . . . . . . . . 1 . . . . 1 . . . . 1 1 1 1 . Emergency Access Points 1 | . . . . . . . . . . . . . . . . 1 . . . . . . . . . Machine Index 2 | . . . . . . . . . . . . . . . . 1 . . . . . . . . 1 Terminal Index 5 | . . . . . . . . . . . 1 . . . . . . . . . 1 1 1 1 . Repair Station Index 1 | . . . . . . . . . . . . . . . . . . . . . . 1 . . . Recycling Unit Index 5 | . . . . . . . . . . . 1 . . . . . . . . . 2 . 1 1 . Scanalyzer Index 4 | . . . . . . . . . . . 1 . . . . . . . . . 1 1 1 . . Garrison Index 1 | . . . . . . . . . . . . . . . . . . . . . . . 1 . . Alert Level 3 | . . . . . . . . . . . . . . . . 1 . . . . . . . 2 . Unreport Threat 7 | . . . . . . . . . . . 1 . . . . 1 . . . . 2 . 1 2 . Locate Traps 14 | . . . . . . . . . . . . . . . . 5 . . . . 1 1 5 1 1 Reprogram Traps 3 | . . . . . . . . . . . . . . . . 2 . . . . . . 1 . . Dispatch Records 2 | . 1 . . . . . . . . . . . . . . 1 . . . . . . . . . Security Status 2 | . . . . . . . . . . . . . . . . 2 . . . . . . . . . Patrol Status 1 | . . . . . . . . . . . . . . . . 1 . . . . . . . . . Recall Investigation 5 | . . . . . . . . . . . . . . . . 1 . . . . 1 1 2 . . Recall Extermination 3 | . . . . . . . . . . . . . . . . 2 . . . . . . 1 . . Recall Reinforcements 2 | . . . . . . . . 1 . . . . . . . 1 . . . . . . . . . Registered Components 5 | . . . . . . . . . . . . . . . . 1 . . . . 1 . 1 1 1 Registered Prototypes 4 | . . . . . . . . . . . . . . . . 1 . . . . 1 . 1 . 1 Zone Layout 7 | . 1 . . . . . . . . . . . . . . 2 . . . . . . 2 1 1 Proto ID Catalog 2 | . . 1 1 . . . . . . . . . . . . . . . . . . . . . . Protovariant Controls 3 | . . . . . . . . . . . . . . . . . . . . . . . . 3 . Fabricator Hacks 7 | . . . . . . . . . . . 3 . . . . . . . . . 4 . . . . Network Status 1 | . . . . . . . . . . . 1 . . . . . . . . . . . . . . Load Schematic 3 | . . . . . . . . . . . 1 . . . . . . . . . 2 . . . . Build 3 | . . . . . . . . . . . 1 . . . . . . . . . 2 . . . . Repair Station Hacks 11 | . . . . . . . . . 2 . 5 . . . . 2 . . . . 2 . . . . Scan Component 6 | . . . . . . . . . 1 . 3 . . . . 1 . . . . 1 . . . . Repair 5 | . . . . . . . . . 1 . 2 . . . . 1 . . . . 1 . . . . Recycling Unit Hacks 14 | . . . . . . . . . . . 2 . . . . 5 . . . . 3 . 1 . 3 Retrieve Components 14 | . . . . . . . . . . . 2 . . . . 5 . . . . 3 . 1 . 3 Scanalyzer 17 | . . . . 1 . . . . . . 5 . . . . 5 . . . . . 4 . 2 . Insert Component 6 | . . . . . . . . . . . 1 . . . . 1 . . . . . 2 . 2 . Analyze 3 | . . . . . . . . . . . 3 . . . . . . . . . . . . . . Retrieve Study 8 | . . . . 1 . . . . . . 1 . . . . 4 . . . . . 2 . . . Garrison Access Hacks . | . . . . . . . . . . . . . . . . . . . . . . . . . . Unauthorized Hacks 90 | . . . . 9 2 . . 1 1 . 10 . . . . 29 . . . . 15 4 7 6 6 Terminals 48 | . . . . 1 2 . . . . . 6 . . . . 17 . . . . 6 4 4 5 3 Assimilate 8 | . . . . . . . . . . . 1 . . . . 3 . . . . . 1 1 1 1 Botnet 17 | . . . . . 2 . . . . . 2 . . . . 2 . . . . 3 2 3 2 1 Detonate 2 | . . . . . . . . . . . . . . . . 1 . . . . . . . . 1 Disrupt 1 | . . . . . . . . . . . . . . . . . . . . . . . . 1 . Operators 4 | . . . . 1 . . . . . . 1 . . . . 1 . . . . . . . 1 . Skim 16 | . . . . . . . . . . . 2 . . . . 10 . . . . 3 1 . . . Fabricators 13 | . . . . 3 . . . . . . 2 . . . . 4 . . . . 2 . 1 1 . Prioritize 2 | . . . . . . . . . . . . . . . . 1 . . . . 1 . . . . Liberate 3 | . . . . 1 . . . . . . . . . . . 1 . . . . . . 1 . . Fabnet 8 | . . . . 2 . . . . . . 2 . . . . 2 . . . . 1 . . 1 . Repair Stations 1 | . . . . . . . . . 1 . . . . . . . . . . . . . . . . Mechanics 1 | . . . . . . . . . 1 . . . . . . . . . . . . . . . . Recycling Units 19 | . . . . 4 . . . . . . 2 . . . . 5 . . . . 4 . 1 . 3 Fedlink 19 | . . . . 4 . . . . . . 2 . . . . 5 . . . . 4 . 1 . 3 Scanalyzers . | . . . . . . . . . . . . . . . . . . . . . . . . . . Garrison Access 9 | . . . . 1 . . . 1 . . . . . . . 3 . . . . 3 . 1 . . Redirect 1 | . . . . 1 . . . . . . . . . . . . . . . . . . . . . Reprogram 6 | . . . . . . . . 1 . . . . . . . 2 . . . . 2 . 1 . . Intercept 1 | . . . . . . . . . . . . . . . . . . . . . 1 . . . . Watchers 1 | . . . . . . . . . . . . . . . . 1 . . . . . . . . . Data Cores Recovered 4 | . . . . . . . . . . . . . . . . 2 . . . . . . . 1 1 Used 1 | . . . . . . . . . . . . . . . . 1 . . . . . . . . . Hacking Detections 79 | . 5 . . 10 11 1 . 3 . . 5 . . . . 16 1 . . . 11 3 7 2 4 Full Trace Events 4 | . . . . 1 . . . . . . 1 . . . . . . . . . 2 . . . . Feedback Events . | . . . . . . . . . . . . . . . . . . . . . . . . . . Feedback Blocked . | . . . . . . . . . . . . . . . . . . . . . . . . . . Robot Schematics Acquired 1 | . . . . . . . . . . . . . . . . . . . . . . . . . 1 Robots Built . | . . . . . . . . . . . . . . . . . . . . . . . . . . Authchips . | . . . . . . . . . . . . . . . . . . . . . . . . . . Time . | . . . . . . . . . . . . . . . . . . . . . . . . . . Total Robot Build Rating . | . . . . . . . . . . . . . . . . . . . . . . . . . . Part Schematics Acquired 5 | . . . . . . . . . . . 1 . . . . . . . 4 . . . . . . Parts Built 4 | . . . . . . . . . . . . . . . . . . . . . 4 . . . . Authchips . | . . . . . . . . . . . . . . . . . . . . . . . . . . Time 320 | . . . . . . . . . . . 128 . . . . . . . . . 192 . . . . Total Part Build Rating 32 | . . . . . . . . . . . . . . . . . . . . . 32 . . . . Part Studies Acquired 7 | . . . . 1 . . . . . . . . . . . 4 . . . . . 2 . . . Parts Repaired 5 | . . . . . . . . . 1 . 2 . . . . 1 . . . . 1 . . . . Time 170 | . . . . . . . . . 50 . 53 . . . . 49 . . . . 18 . . . . Parts Recycled . | . . . . . . . . . . . . . . . . . . . . . . . . . . Recycled Matter . | . . . . . . . . . . . . . . . . . . . . . . . . . . Retrieved Matter . | . . . . . . . . . . . . . . . . . . . . . . . . . . Retrieved Components 37 | . . . . . . . . . . . 4 . . . . 7 . . . . 22 . 1 . 3 Parts Scanalyzed 1 | . . . . . . . . . . . 1 . . . . . . . . . . . . . . Part Schematics Acquired 1 | . . . . . . . . . . . 1 . . . . . . . . . . . . . . Parts Damaged 1 | . . . . . . . . . . . 1 . . . . . . . . . . . . . . Bothacking | -11 -10 -10 -8 -6 -6 -6 -6 -6 -5 -5 -5 -5 -5 -5 -4 -4 -4 -4 -4 -3 -3 -3 -2 -2 -2 ------------ Run | Yrd Mat Sub Scr Fac Ext Cet Arc Hub Fac Was Fac Upp Upp War Pro Fac Upp Upp Zhi Pro Res Qua Res Tes Frg Used RIF Installer . | . . . . . . . . . . . . . . . . . . . . . . . . . . Robots Hacked 24 | . . . . . . . . . 1 . 3 . . . . 2 . . . 2 8 1 2 . 5 Non-combat . | . . . . . . . . . . . . . . . . . . . . . . . . . . Combat 24 | . . . . . . . . . 1 . 3 . . . . 2 . . . 2 8 1 2 . 5 Robot Hacks Applied . | . . . . . . . . . . . . . . . . . . . . . . . . . . Relay Couplers Released 2 | . . . . . . . . 2 . . . . . . . . . . . . . . . . . Machine Destruction 2 | . . . . . . . . 2 . . . . . . . . . . . . . . . . . Fabnet Peak Effective % 7 | . . . . . . . . . 6 6 6 6 6 6 5 5 5 5 5 7 7 7 5 5 5 Autooverrided 24 | . . . . . . . . . 1 . 3 . . . . 2 . . . 2 8 1 2 . 5 Robots Rewired 20 | . . . . . 20 . . . . . . . . . . . . . . . . . . . . Allies Hacked 1 | . . . . . . . . . . . 1 . . . . . . . . . . . . . . Hacks Repelled . | . . . . . . . . . . . . . . . . . . . . . . . . . . Allies | -11 -10 -10 -8 -6 -6 -6 -6 -6 -5 -5 -5 -5 -5 -5 -4 -4 -4 -4 -4 -3 -3 -3 -2 -2 -2 -------- Run | Yrd Mat Sub Scr Fac Ext Cet Arc Hub Fac Was Fac Upp Upp War Pro Fac Upp Upp Zhi Pro Res Qua Res Tes Frg Total Allies 111 | . . . 3 . 35 6 5 2 1 19 3 . . . . 6 . . . 2 14 1 8 1 5 Largest Group 23 | . . . 1 . 23 22 21 20 2 19 15 1 1 . . 3 . . . 2 4 1 6 1 1 Highest-Rated Group 1205 | . . . 25 . 844 1205 1180 1053 70 684 606 50 50 . . 126 . . . 112 199 30 335 10 58 Highest-Rated Ally 159 | . . . 25 . 159 159 137 100 41 50 50 50 50 . . 54 . . . 64 58 30 82 10 58 Initial UFD Resources 113 | . . . . 22 40 40 40 40 43 43 43 57 57 57 61 61 81 81 81 83 83 101 103 113 113 Total Orders 1 | . . . . . . . . 1 . . . . . . . . . . . . . . . . . STAY 1 | . . . . . . . . 1 . . . . . . . . . . . . . . . . . Ally Attacks 744 | . . . . . 160 67 45 84 9 180 117 . 1 . . 10 . . . 9 29 1 29 . 3 Total Damage 21450 | . . . . . 3184 1328 881 2935 185 6195 4403 . 66 . . 233 . . . 338 942 . 695 . 65 Kills 108 | . . . . . 28 10 5 13 1 10 34 . . . . . . . . 2 3 . 2 . . Allies Corrupted 6 | . . . . . . . . 4 . . 2 . . . . . . . . . . . . . . Allies Melted 4 | . . . . . . . . 1 . . . . . . . . . . . . . . . . 3 Intel | -11 -10 -10 -8 -6 -6 -6 -6 -6 -5 -5 -5 -5 -5 -5 -4 -4 -4 -4 -4 -3 -3 -3 -2 -2 -2 ------- Run | Yrd Mat Sub Scr Fac Ext Cet Arc Hub Fac Was Fac Upp Upp War Pro Fac Upp Upp Zhi Pro Res Qua Res Tes Frg Active Infowar (turns) 8206 | . . . 247 579 642 . 262 74 85 367 305 510 402 126 523 944 147 235 52 113 853 201 281 263 995 Optics 840 | . . . . . . . . . . . . . . . . . . . . . . . . . 840 Sensors 6633 | . . . 247 579 397 . 262 74 . . 11 510 402 126 178 803 147 235 52 113 853 201 281 263 899 Triangulation 584 | . . . . . 584 . . . . . . . . . . . . . . . . . . . . Cloaking 2337 | . . . . . . . . . 85 367 294 . . . 345 141 . 101 22 44 688 172 78 . . Jamming 1 | . . . . . . . . . . . . . . . . . . . . . . . . . 1 Robot Analysis Total 13 | . 1 . 4 1 . . . . . . . . . . . 2 . . 4 . . . 1 . . Derelict Logs Recovered 9 | . . 3 . . . . . . . . . 1 2 . 1 . 1 1 . . . . . . . Drone Launches . | . . . . . . . . . . . . . . . . . . . . . . . . . . Drone Recoveries . | . . . . . . . . . . . . . . . . . . . . . . . . . . Exploration | -11 -10 -10 -8 -6 -6 -6 -6 -6 -5 -5 -5 -5 -5 -5 -4 -4 -4 -4 -4 -3 -3 -3 -2 -2 -2 ------------- Run | Yrd Mat Sub Scr Fac Ext Cet Arc Hub Fac Was Fac Upp Upp War Pro Fac Upp Upp Zhi Pro Res Qua Res Tes Frg Turns Passed 14877 | 43 782 1996 1745 1153 1390 382 324 213 85 367 479 510 402 235 548 993 147 235 52 113 853 201 281 335 1013 Spaces Moved 21017 | 41 604 1504 1441 847 1159 466 205 215 67 324 648 569 583 643 1000 1716 284 466 132 204 2285 596 783 704 3531 Core 26 | 6 . 20 . . . . . . . . . . . . . . . . . . . . . . . Treads . | . . . . . . . . . . . . . . . . . . . . . . . . . . Legs 238 | . . . . . 238 . . . . . . . . . . . . . . . . . . . . Wheels 4021 | 35 604 1484 1441 457 . . . . . . . . . . . . . . . . . . . . . Hover 4497 | . . . . 390 921 466 205 215 67 324 648 569 583 109 . . . . . . . . . . . Flight 12235 | . . . . . . . . . . . . . . 534 1000 1716 284 466 132 204 2285 596 783 704 3531 Fastest Speed 7 | 50 90 90 107 48 52 52 52 52 52 52 52 52 52 27 27 27 32 32 32 32 20 20 14 14 7 Average Speed 49 | 83 96 120 119 85 69 52 52 52 66 91 53 52 52 31 39 31 32 32 32 32 25 20 17 16 16 Slowest Speed 600 | 90 115 600 140 160 260 106 52 52 106 102 106 52 52 56 100 108 32 32 32 32 120 20 94 17 91 Overloaded Moves 236 | . . . . . . . . . . . . . . . . . . . . . . . 25 31 180 Propulsion Burnouts . | . . . . . . . . . . . . . . . . . . . . . . . . . . Robots Hopped 52 | . . . . . . . . . . . . . . . . 5 . . . 1 1 10 4 11 20 Potential Cave-ins 16 | . . . . . . . . . . . . . . . 10 4 . . . . . . . 2 . Cave-ins Triggered 2 | . . . . . . . . . . . . . . . 1 . . . . 1 . . . . . Teleports 1 | . . . . . . . . . . . . . . . . . . . . . . 1 . . . Exploration Rate (%) 57 | 3 94 71 89 31 91 69 82 20 2 90 23 66 79 77 79 58 50 59 62 44 58 58 23 71 50 Regions Visited 25 Branch Regions 17 Pre-discovered Areas 10 | . . 1 . 1 . . . . . . . . 1 . 1 2 1 . 3 . . . . . . Known Exits Taken 19 | . . . . 1 1 1 1 1 . . 1 1 1 1 1 1 1 1 1 1 1 1 1 1 . Unknown Exits Taken 4 | 1 1 1 1 . . . . . . . . . . . . . . . . . . . . . . Scrap Searched 34 | . . 15 5 . . . . . . . . 3 2 . 5 . 3 1 . . . . . . . Spaces Dug 291 | . . . . 23 . 13 . 2 2 . 3 7 14 . 49 77 . 13 . 4 22 12 15 11 24 Terrain Destroyed 936 | . 45 166 . 156 1 14 20 147 2 . 7 7 14 . 72 89 . 13 . 4 23 12 49 71 24 Melee 177 | . . . . 12 . . . . . . . 5 5 . 3 52 . 13 . 4 21 12 15 11 24 Projectile 153 | . . . . 15 1 14 20 9 2 . 6 2 9 . 48 25 . . . . 2 . . . . AOE 606 | . 45 166 . 129 . . . 138 . . 1 . . . 21 12 . . . . . . 34 60 . Terrain Rammed . | . . . . . . . . . . . . . . . . . . . . . . . . . . Walls Destroyed . | . . . . . . . . . . . . . . . . . . . . . . . . . . Machines Disabled . | . . . . . . . . . . . . . . . . . . . . . . . . . . Actions | -11 -10 -10 -8 -6 -6 -6 -6 -6 -5 -5 -5 -5 -5 -5 -4 -4 -4 -4 -4 -3 -3 -3 -2 -2 -2 --------- Run | Yrd Mat Sub Scr Fac Ext Cet Arc Hub Fac Was Fac Upp Upp War Pro Fac Upp Upp Zhi Pro Res Qua Res Tes Frg Total 24197 | 46 738 1614 1465 1127 1608 584 373 288 97 386 737 773 659 676 1091 1967 339 525 140 241 2483 633 872 872 3863 Wait 1433 | . 72 6 . 110 149 58 109 46 18 52 22 185 58 . 26 65 56 44 . 21 64 1 47 140 84 Move 20894 | 40 603 1503 1440 846 1158 465 204 214 67 323 647 568 582 642 998 1707 283 465 131 201 2282 577 774 681 3493 Hop 47 | . . . . . . . . . . . . . . . . 4 . . . 1 1 8 4 11 18 Pick Up 153 | . 9 13 5 15 15 12 7 1 . 2 10 5 . 5 1 13 . 1 1 . 14 8 2 3 11 Fast Attach 161 | 6 5 7 6 18 17 5 3 1 1 1 2 . . 11 4 22 . . 4 1 16 3 4 1 23 Attach 59 | . . 4 1 8 4 2 4 1 1 2 . . . 3 1 7 . . . 1 10 3 4 . 3 Detach 12 | . . . . 2 . . . . . . . . . . 1 1 . . . . 7 . . . 1 Swap 56 | . 3 7 . 8 8 1 . 2 . . 8 2 . . 1 . . 1 1 1 6 2 1 3 1 Drop 206 | . 4 10 7 11 22 18 7 . . . 9 4 . 14 2 20 . 1 3 . 20 8 2 3 41 Fire 506 | . 42 56 . 77 70 23 39 22 10 6 39 4 14 1 44 29 . . . . 8 . 4 5 13 Melee 359 | . . 8 . 32 18 . . . . . . 5 5 . 12 99 . 13 . 4 46 23 30 22 42 Ram 4 | . . . . . 3 . . 1 . . . . . . . . . . . . . . . . . Kick . | . . . . . . . . . . . . . . . . . . . . . . . . . . Crush . | . . . . . . . . . . . . . . . . . . . . . . . . . . Escape Stasis 97 | . . . . . 20 . . . . . . . . . 1 . . . . 11 9 . . 3 53 Rewire 130 | . . . 6 . 124 . . . . . . . . . . . . . . . . . . . . Trap . | . . . . . . . . . . . . . . . . . . . . . . . . . . Miscellaneous 80 | . . . . . . . . . . . . . . . . . . . . . . . . . 80 Route ------- -11/Scrapyard -10/Materials (discovered 5 exits: [*Mat x3] / [*Min] / *Sub) -10/Subcaves (discovered 2 exits: *Mat / *Scr) -8/Scraptown (discovered 2 exits: *Fac x2) -6/Factory (discovered 6 exits: *Fac x3 / *Low x2 / *Ext) -6/Extension (discovered 2 exits: *Fac / *Cet) -6/Cetus (discovered 2 exits: *Fac / *Arc) -6/Archives (discovered 3 exits: *Fac / *Hub x2) -6/Hub_04(d) -5/Factory -5/Waste -5/Factory (discovered 3 exits: *Fac / *Upp x2) -5/Upper Caves -5/Upper Caves (discovered 2 exits: *Fac / *War) -5/Warlord -4/Proximity Caves -4/Factory (discovered 4 exits: *Res x2 / *Upp x2) -4/Upper Caves -4/Upper Caves (discovered 2 exits: Res / *Zhi) -4/Zhirov -3/Proximity Caves -3/Research (discovered 4 exits: *Res / Arm / *Qua x2) -3/Quarantine -2/Research (discovered 3 exits: *Acc / *Tes x2) -2/Testing (discovered 3 exits: Acc / [*Sec] / *Frg) -2/Protoforge 0bPrime History --------- Turn | Location | Event 3 | -11/Scrapyard | Discovered new exit (range 16) 44 | -11/Scrapyard | Entered Materials 50 | -10/Materials | Central database locked down 130 | -10/Materials | Discovered new exit (range 8) 208 | -10/Materials | Discovered new exit (range 15) 332 | -10/Materials | Build established: Mutant 355 | -10/Materials | Discovered new exit (range 4) 588 | -10/Materials | Discovered new exit (range 11) 815 | -10/Materials | Discovered new exit (range 12) 826 | -10/Materials | Entered Subcaves 827 | -10/Subcaves | Approached by a straggling Scientist 930 | -10/Subcaves | Scientist uncovered a shortcut to Scraptown 966 | -10/Subcaves | A swath of the cavern ceiling suddenly collapsed 1154 | -10/Subcaves | Identified exit to Materials 1224 | -10/Subcaves | Learned location of Mines (-9) 1455 | -10/Subcaves | A swath of the cavern ceiling suddenly collapsed 1691 | -10/Subcaves | Visited 4L-MR0's lab 1710 | -10/Subcaves | Found Maxwheels 1714 | -10/Subcaves | Found Prototype Device 2034 | -10/Subcaves | Disturbed a concealed Subdweller 2097 | -10/Subcaves | Visited Clippyterm 2101 | -10/Subcaves | Learned Research security intel 2101 | -10/Subcaves | Learned 40 Factory zone layouts 2296 | -10/Subcaves | A Subdweller sparked back to life 2296 | -10/Subcaves | A Subdweller sparked back to life 2296 | -10/Subcaves | A Subdweller sparked back to life 2362 | -10/Subcaves | Found Power Bank 2445 | -10/Subcaves | Ambushed by Subdwellers from Twisted Machinery 2455 | -10/Subcaves | Core integrity fell below 50% 2489 | -10/Subcaves | Lost 4 parts (1p1n2w) 2822 | -10/Subcaves | Entered Scraptown 2863 | -8/Scraptown | Visited Awakened 2900 | -8/Scraptown | Visited UFD Registry 2900 | -8/Scraptown | Registered with UFD as "Electrolever" 2940 | -8/Scraptown | Visited Botcube Research 2966 | -8/Scraptown | Visited Scrapoid Research Area 3006 | -8/Scraptown | Visited Scrap Suit Storage 3038 | -8/Scraptown | Delivered Scrap Shield to a Scientist 3133 | -8/Scraptown | Visited Junk Repository 3172 | -8/Scraptown | Visited Supply Room 3191 | -8/Scraptown | Visited Research Penetration Think Tank 3213 | -8/Scraptown | Visited Science Guys 3269 | -8/Scraptown | Visited Scrapoid Pod Storage 3293 | -8/Scraptown | Visited Analyses Database 3333 | -8/Scraptown | Found Scrapoid Pod 3417 | -8/Scraptown | Visited Symbiants 4036 | -8/Scraptown | Discovered new exit (range 11) 4081 | -8/Scraptown | Guru changed UFD alias to "Shadowsys" 4162 | -8/Scraptown | Visited Cave Peace 4205 | -8/Scraptown | Visited The Evicted 4238 | -8/Scraptown | Visited Fellowship of the Rings 4299 | -8/Scraptown | Botcube activated 4303 | -8/Scraptown | Botcube activated 4308 | -8/Scraptown | Botcube activated 4312 | -8/Scraptown | Found Botcube 4403 | -8/Scraptown | Visited Infowarlord's Domain 4414 | -8/Scraptown | Found Exp. Sensor Array 4473 | -8/Scraptown | Met Optimus 4473 | -8/Scraptown | Accepted into 0bPrime 4564 | -8/Scraptown | Discovered new exit (range 3) 4567 | -8/Scraptown | Entered Factory 4567 | -6/Factory | Evolved 8 slots: Propulsion x4, Utility x4 4568 | -6/Factory | Identified exit to Factory 4568 | -6/Factory | Identified exit to Lower Caves 4568 | -6/Factory | Identified exit to Extension 4568 | -6/Factory | Attached Maxwheels, gained temporary slots: Weapon x2 4607 | -6/Factory | Loaded intel: 8 recycling unit locations 5057 | -6/Factory | Central database locked down 5076 | -6/Factory | Learned location of Protoforge (-2) 5264 | -6/Factory | Lost 3 parts (1p1u1w) 5264 | -6/Factory | Identified Sfc. Transmogrifier 5333 | -6/Factory | Attached CPS modules to P-60 Hacker 5665 | -6/Factory | Lost 3 parts (3n) 5720 | -6/Factory | Entered Extension 5825 | -6/Extension | Rescued a captive Derelict 6023 | -6/Extension | Rescued a captive Derelict 6026 | -6/Extension | Rescued a captive Derelict 6057 | -6/Extension | Core integrity fell below 50% 6306 | -6/Extension | Rescued a captive Derelict 6399 | -6/Extension | Build established: Commander-Mutant 6692 | -6/Extension | Spotted B-75 Beast 6725 | -6/Extension | Spotted B-75 Beast 6741 | -6/Extension | Allies destroyed B-75 Beast 6770 | -6/Extension | Lost 4 allies 6821 | -6/Extension | Rescued a captive Derelict 6822 | -6/Extension | Rescued a captive Derelict 6823 | -6/Extension | Rescued a captive Derelict 6825 | -6/Extension | Rescued a captive Derelict 6847 | -6/Extension | Rescued a captive Derelict 6848 | -6/Extension | Rescued a captive Derelict 6883 | -6/Extension | Rescued a captive Derelict 6892 | -6/Extension | Rescued a captive Derelict 6965 | -6/Extension | Rescued A7 6980 | -6/Extension | Rescued a captive Derelict 6981 | -6/Extension | Rescued a captive Derelict 7008 | -6/Extension | Discovered exit to Factory (range 10) 7008 | -6/Extension | Discovered new exit (range 6) 7016 | -6/Extension | Identified exit to Cetus 7110 | -6/Extension | Entered Cetus 7110 | -6/Cetus | Accompanied by 21 allies (A7) 7115 | -6/Cetus | Acquired a Cetus Manufacturing Module code from A7 7148 | -6/Cetus | Spotted Cetus Guard 7150 | -6/Cetus | Spotted Cetus Guard 7150 | -6/Cetus | Spotted Cetus Guard 7158 | -6/Cetus | Spotted Cetus Guard 7158 | -6/Cetus | Allies destroyed Cetus Guard 7160 | -6/Cetus | Allies destroyed Cetus Guard 7163 | -6/Cetus | Allies destroyed Cetus Guard 7167 | -6/Cetus | Destroyed Cetus Guard 7187 | -6/Cetus | Lost 3 allies 7220 | -6/Cetus | Escorted A7 to Cetus Mainframe 7224 | -6/Cetus | Started Cetus Manufacturing Module 7233 | -6/Cetus | Discovered new exit (range 16) 7247 | -6/Cetus | Spotted Cetus Guard 7248 | -6/Cetus | Spotted Cetus Guard 7249 | -6/Cetus | Manufactured an Enhanced Grunt 7274 | -6/Cetus | Manufactured an Enhanced Grunt 7299 | -6/Cetus | Manufactured an Enhanced Grunt 7306 | -6/Cetus | Discovered exit to Factory (range 15) 7324 | -6/Cetus | Manufactured an Enhanced Grunt 7324 | -6/Cetus | Botcube activated 7326 | -6/Cetus | Met Revision 17 7349 | -6/Cetus | Manufactured an Enhanced Grunt 7426 | -6/Cetus | Identified exit to Archives 7492 | -6/Cetus | Entered Archives 7492 | -6/Archives | Accompanied by 21 allies (A7) 7497 | -6/Archives | Received a hacking code to weaken MAIN.C 7536 | -6/Archives | Scrapoid Pod released 06A07-D (x5) 7537 | -6/Archives | Found Prototype Device 7537 | -6/Archives | Identified Exp. Thermal Shield 7555 | -6/Archives | Lost 4 allies 7559 | -6/Archives | Discovered new exit (range 16) 7611 | -6/Archives | Discovered new exit (range 14) 7631 | -6/Archives | Discovered exit to Factory (range 16) 7705 | -6/Archives | Identified exit to Hub_04(d) 7816 | -6/Archives | Entered Hub_04(d) 7816 | -6/Hub_04(d) | Accompanied by 20 allies 7895 | -6/Hub_04(d) | Garrison activated, responded to threat 7907 | -6/Hub_04(d) | Discovered exit to Factory (range 8) 8014 | -6/Hub_04(d) | Network Hub disabled 8018 | -6/Hub_04(d) | Garrison activated, responded to threat 8024 | -6/Hub_04(d) | Spotted Lightning 8024 | -6/Hub_04(d) | Spotted Lightning 8024 | -6/Hub_04(d) | Spotted Lightning 8024 | -6/Hub_04(d) | Spotted Lightning 8024 | -6/Hub_04(d) | Spotted Lightning 8024 | -6/Hub_04(d) | Spotted Lightning 8029 | -6/Hub_04(d) | Core integrity fell below 20% 8029 | -6/Hub_04(d) | Entered Factory 8029 | -5/Factory | Accompanied by 1 ally 8029 | -5/Factory | Evolved 2 slots: Utility x2 8040 | -5/Factory | Murdered 4 allies 8059 | -5/Factory | Lost 8 allies 8092 | -5/Factory | Repaired Gravmag Array 8114 | -5/Factory | Sucked down chute 8114 | -5/Factory | Entered Waste 8122 | -5/Waste | Spotted C-40 Crusher 8125 | -5/Waste | Spotted C-40 Crusher 8129 | -5/Waste | Spotted C-40 Crusher 8136 | -5/Waste | Spotted C-40 Crusher 8141 | -5/Waste | Spotted C-40 Crusher 8147 | -5/Waste | Warlord forces began an assault 8153 | -5/Waste | Allies destroyed C-40 Crusher 8155 | -5/Waste | Allies destroyed C-40 Crusher 8159 | -5/Waste | Allies destroyed C-40 Crusher 8159 | -5/Waste | Spotted C-40 Crusher 8172 | -5/Waste | Destroyed C-40 Crusher 8176 | -5/Waste | Allies destroyed C-40 Crusher 8192 | -5/Waste | Allies destroyed C-40 Crusher 8220 | -5/Waste | Found Gamma Bomb Array 8222 | -5/Waste | Lost 5 allies 8257 | -5/Waste | Discovered new exit (range 12) 8335 | -5/Waste | Build established: Scavenger-Mutant 8481 | -5/Waste | Entered Factory 8481 | -5/Factory | Accompanied by 14 allies 8539 | -5/Factory | Repaired Broken Gamma Bomb Array 8624 | -5/Factory | Loaded intel: 8 recycling unit locations 8637 | -5/Factory | Repaired Q-thruster 8670 | -5/Factory | Identified exit to Upper Caves 8697 | -5/Factory | Discovered new exit (range 13) 8722 | -5/Factory | Central database locked down 8728 | -5/Factory | Local machine network offline 8787 | -5/Factory | Build established: Wizard-Mutant 8960 | -5/Factory | Entered Upper Caves 8960 | -5/Upper Caves | Accompanied by 1 ally 8962 | -5/Upper Caves | UFD Scientist delivered a prototype 8963 | -5/Upper Caves | Found Prototype Protection 9025 | -5/Upper Caves | Learned Factory terminal intel 9026 | -5/Upper Caves | Found DCF Scrap (11 items) 9432 | -5/Upper Caves | Discovered new exit (range 6) 9435 | -5/Upper Caves | Identified exit to Upper Caves 9470 | -5/Upper Caves | Entered another Upper Caves area 9470 | -5/Upper Caves | Accompanied by 1 ally 9488 | -5/Upper Caves | Learned Factory emergency access door positions 9490 | -5/Upper Caves | Discovered new exit (range 6) 9499 | -5/Upper Caves | Identified exit to Factory 9830 | -5/Upper Caves | Discovered new exit (range 14) 9836 | -5/Upper Caves | Identified exit to Warlord 9872 | -5/Upper Caves | Entered Warlord 9927 | -5/Warlord | Found Prototype Device 9927 | -5/Warlord | Identified System Purifier 9950 | -5/Warlord | Found Prototype Reactor 9953 | -5/Warlord | Found Spectral Analyzer 9958 | -5/Warlord | Received a Watcher feed algorithm from an ecstatic Tinkerer 9993 | -5/Warlord | Visited the Vortex Lab 9996 | -5/Warlord | Found Prototype Piercing Weapon 9996 | -5/Warlord | Identified Vortex Lance 9997 | -5/Warlord | Warlord's base attacked by MAIN.C 9999 | -5/Warlord | Found Prototype Energy Gun 9999 | -5/Warlord | Identified Vortex Shotgun 10001 | -5/Warlord | Found Vortex Lance 10004 | -5/Warlord | Found Vortex Lance 10006 | -5/Warlord | Found Vortex Lance 10037 | -5/Warlord | Rebuked by Warlord 10079 | -5/Warlord | Opened side exit 10103 | -5/Warlord | Discovered new exit (range 15) 10106 | -5/Warlord | Identified exit to Proximity Caves 10107 | -5/Warlord | Entered Proximity Caves 10220 | -4/Proximity Caves | Build established: Wizard-Sprinter 10316 | -4/Proximity Caves | Lost 5 parts (1p2n1u1w) 10625 | -4/Proximity Caves | Crushed by falling debris 10639 | -4/Proximity Caves | Discovered exit to Factory (range 13) 10655 | -4/Proximity Caves | Entered Factory 10655 | -4/Factory | Evolved 2 slots: Utility x2 10657 | -4/Factory | Loaded intel: 24 terminal locations 10658 | -4/Factory | Loaded intel: 8 recycling unit locations 10674 | -4/Factory | Identified exit to Upper Caves 10706 | -4/Factory | Identified Enh. Scrap Shield 10784 | -4/Factory | Watched by a mysterious "MATRIX" hacker 10787 | -4/Factory | Spotted B-86 Titan 10841 | -4/Factory | Lost 5 parts (1n3u1w) 10907 | -4/Factory | Ran a Watcher feed algorithm 10920 | -4/Factory | Discovered new exit (range 15) 10963 | -4/Factory | Learned 2 Upper Caves zone layouts 10988 | -4/Factory | Identified exit to Research 11002 | -4/Factory | Loaded intel: 4 garrison access locations 11006 | -4/Factory | Learned 4 Upper Caves zone layouts 11008 | -4/Factory | Learned Quarantine trap positions 11009 | -4/Factory | Learned location of 1 exit from Testing 11015 | -4/Factory | Learned 2 Upper Caves zone layouts 11030 | -4/Factory | Learned location of Testing (-2) 11040 | -4/Factory | Spotted B-86 Titan 11055 | -4/Factory | Learned Research emergency access door positions 11605 | -4/Factory | Repaired Centrium Greatsword 11645 | -4/Factory | Build established: Hacker-Sprinter 11648 | -4/Factory | Entered Upper Caves 11649 | -4/Upper Caves | Identified exit to Upper Caves 11795 | -4/Upper Caves | Entered another Upper Caves area 11799 | -4/Upper Caves | Encountered a Warlord checkpoint 11918 | -4/Upper Caves | Spotted B-86 Titan 11929 | -4/Upper Caves | Discovered new exit (range 6) 11930 | -4/Upper Caves | Identified exit to Zhirov 12030 | -4/Upper Caves | Entered Zhirov 12030 | -4/Zhirov | Discovered new exit (range 3) 12036 | -4/Zhirov | Met Zhirov 12043 | -4/Zhirov | Learned location of Quarantine (-3) 12043 | -4/Zhirov | Learned location of Command (-1) 12048 | -4/Zhirov | Zhirov requested help retrieving the SGEMP Prototype 12053 | -4/Zhirov | Found Alien Artifact 12053 | -4/Zhirov | Identified Integrated Reactor 12053 | -4/Zhirov | Installed Integrated Reactor, increased core energy generation (+10) 12069 | -4/Zhirov | Found Alien Artifact 12082 | -4/Zhirov | Identified exit to Proximity Caves 12082 | -4/Zhirov | Entered Proximity Caves 12134 | -3/Proximity Caves | Crushed by falling debris 12167 | -3/Proximity Caves | Lost 4 parts (3u1w) 12195 | -3/Proximity Caves | Discovered exit to Research (range 3) 12195 | -3/Proximity Caves | Entered Research 12195 | -3/Research | Evolved 2 slots: Propulsion x1, Utility x1 12395 | -3/Research | Revision forces began assault on 0b10 12409 | -3/Research | Found Exp. Thermal Shield 12445 | -3/Research | Spotted B-86 Titan 12459 | -3/Research | Found Exp. Signal Interpreter 12497 | -3/Research | Found Prototype Hackware 12497 | -3/Research | Identified Exp. Hacking Suite 12554 | -3/Research | Fabricated Q-thruster? 12592 | -3/Research | Discovered new exit (range 8) 12594 | -3/Research | Identified exit to Research 12608 | -3/Research | Fabricated Q-thruster? 12675 | -3/Research | Met up with Revision 17++ 12779 | -3/Research | Identified exit to Armory 12779 | -3/Research | Identified exit to Quarantine 12784 | -3/Research | Build established: Wizard-Sprinter 12785 | -3/Research | Loaded intel: 5 recycling unit locations 12887 | -3/Research | Spotted B-86 Titan 12895 | -3/Research | Research terminal network offline 12919 | -3/Research | Destroyed B-86 Titan 12985 | -3/Research | Repaired Nuclear Pulse Array+ 12994 | -3/Research | Found Prototype Processor 12994 | -3/Research | Identified Exp. Target Analyzer 13035 | -3/Research | Local machine network offline 13048 | -3/Research | Entered Quarantine 13049 | -3/Quarantine | Loaded intel: 19 trap records 13057 | -3/Quarantine | Found Alien Artifact 13061 | -3/Quarantine | Identified Transdimensional Reconstructor 13061 | -3/Quarantine | Identified Subatomic Replicator 13061 | -3/Quarantine | Targeted by mysterious "MATRIX" hacker 13073 | -3/Quarantine | Found Alien Artifact 13124 | -3/Quarantine | Found Alien Artifact 13133 | -3/Quarantine | Found Alien Artifact 13133 | -3/Quarantine | Identified Phase Armor 13162 | -3/Quarantine | Identified Hpw. Transdimensional Reconstructor 13162 | -3/Quarantine | Warped through subspace 13168 | -3/Quarantine | Found Fusion Bomb Launcher 13178 | -3/Quarantine | Local machine network offline 13208 | -3/Quarantine | Found Alien Artifact 13208 | -3/Quarantine | Identified Dimensional Node Initializer 13208 | -3/Quarantine | Initialized slip node 13213 | -3/Quarantine | Found Dimensional Node Initializer 13218 | -3/Quarantine | Found Transdimensional Reconstructor 13220 | -3/Quarantine | Found Hpw. Transdimensional Reconstructor 13247 | -3/Quarantine | Discovered exit to Research (range 10) 13249 | -3/Quarantine | Entered Research 13249 | -2/Research | Evolved 2 slots: Propulsion x1, Weapon x1 13270 | -2/Research | Identified exit to Testing 13299 | -2/Research | Attached Power Bank, gained temporary slots: Power x3 13300 | -2/Research | Found Prototype Processor 13300 | -2/Research | Identified Exp. Core Analyzer 13355 | -2/Research | Build established: Hacker-Sprinter 13355 | -2/Research | Loaded intel: 5 recycling unit locations 13360 | -2/Research | Lost 3 parts (3u) 13517 | -2/Research | Spotted B-90 Cyclops 13523 | -2/Research | Discovered new exit (range 7) 13530 | -2/Research | Entered Testing 13531 | -2/Testing | Identified exit to Access 13543 | -2/Testing | Found Prototype Hackware 13543 | -2/Testing | Identified System Mapper 13586 | -2/Testing | Found Prototype Ballistic Cannon 13590 | -2/Testing | Protovariant out of control (PG-OBSDT1W7ST) 13590 | -2/Testing | Unleashed a protovariant (PG-OBSDT1W7ST) 13747 | -2/Testing | Scanned by Researcher 13773 | -2/Testing | Identified Core Reset Matrix 13773 | -2/Testing | Identified Omega Cannon 13784 | -2/Testing | Found Prototype Energy Cannon 13813 | -2/Testing | Spotted Fortress 13824 | -2/Testing | Discovered new exit (range 6) 13824 | -2/Testing | Discovered new exit (range 6) 13865 | -2/Testing | Identified exit to Protoforge 13865 | -2/Testing | Entered Protoforge 13883 | -2/Protoforge | Spotted B-90 Cyclops 13887 | -2/Protoforge | Superfortress began startup sequence 13932 | -2/Protoforge | Spotted Hotshot 13969 | -2/Protoforge | Spotted AP7-3 13971 | -2/Protoforge | Spotted AP7-3 13971 | -2/Protoforge | Spotted Overlord 13974 | -2/Protoforge | Spotted EXE-6 13974 | -2/Protoforge | Spotted EXE-6 13975 | -2/Protoforge | Spotted SKR-2 13975 | -2/Protoforge | Spotted SKR-2 13975 | -2/Protoforge | Spotted SKR-2 13983 | -2/Protoforge | UFD initiated attack on Protoforge (Readiness: High) 13983 | -2/Protoforge | Loaded intel: 3 recycling unit locations 13989 | -2/Protoforge | Spotted EXE-6 13989 | -2/Protoforge | Spotted EXE-6 14019 | -2/Protoforge | Optimus greeted in Protoforge 14041 | -2/Protoforge | Identified Imp. Potential Cannon 14048 | -2/Protoforge | Found Prototype Processor 14048 | -2/Protoforge | Identified Exp. Armor Integrity Analyzer 14055 | -2/Protoforge | Found Prototype Device 14055 | -2/Protoforge | Identified Exp. Kinecellerator 14086 | -2/Protoforge | Found UFD Drillbomb 14100 | -2/Protoforge | Lost 14 allies 14115 | -2/Protoforge | Found Prototype Device 14115 | -2/Protoforge | Identified Exp. Weapon Cycler 14118 | -2/Protoforge | Found Prototype Device 14118 | -2/Protoforge | Identified Exp. Transmission Jammer 14120 | -2/Protoforge | Found Prototype Device 14120 | -2/Protoforge | Identified Exp. Remote Shield 14122 | -2/Protoforge | Found Prototype Device 14122 | -2/Protoforge | Identified Exp. EM Shield 14144 | -2/Protoforge | Lost 8 allies 14149 | -2/Protoforge | Spotted Hotshot 14191 | -2/Protoforge | Installed UFD Drillbomb at designated target 14191 | -2/Protoforge | UFD reported confirmed Drillbomb installation 14196 | -2/Protoforge | Spotted Hotshot 14196 | -2/Protoforge | UFD reported confirmed Drillbomb installation 14214 | -2/Protoforge | Local machine network offline 14235 | -2/Protoforge | Met 7R-MNS 14252 | -2/Protoforge | UFD reported confirmed Drillbomb installation 14252 | -2/Protoforge | Found UFD Drillbomb 14295 | -2/Protoforge | Spotted Hotshot 14308 | -2/Protoforge | Installed UFD Drillbomb at designated target 14308 | -2/Protoforge | UFD reported confirmed Drillbomb installation 14315 | -2/Protoforge | Spotted Hotshot 14315 | -2/Protoforge | Spotted Hotshot 14353 | -2/Protoforge | Found Prototype Slashing Weapon 14353 | -2/Protoforge | Identified Exp. Terror Saw 14355 | -2/Protoforge | Found UFD Drillbomb 14393 | -2/Protoforge | Discovered exit to Access (range 12) 14402 | -2/Protoforge | Build established: Scavenger-Scout 14419 | -2/Protoforge | Installed UFD Drillbomb at designated target 14419 | -2/Protoforge | UFD reported confirmed Drillbomb installation 14440 | -2/Protoforge | Found UFD Drillbomb 14510 | -2/Protoforge | Installed UFD Drillbomb at designated target 14510 | -2/Protoforge | UFD reported confirmed Drillbomb installation 14525 | -2/Protoforge | Spotted Striker 14559 | -2/Protoforge | Spotted Striker 14559 | -2/Protoforge | Spotted Striker 14560 | -2/Protoforge | Spotted Executioner 14561 | -2/Protoforge | Found UFD Drillbomb 14573 | -2/Protoforge | Installed UFD Drillbomb at designated target 14573 | -2/Protoforge | UFD reported confirmed Drillbomb installation 14594 | -2/Protoforge | Found UFD Drillbomb 14608 | -2/Protoforge | Spotted Executioner 14608 | -2/Protoforge | Spotted Executioner 14627 | -2/Protoforge | Installed UFD Drillbomb at designated target 14627 | -2/Protoforge | UFD reported confirmed Drillbomb installation 14639 | -2/Protoforge | Lost 5 allies 14668 | -2/Protoforge | Found UFD Drillbomb 14679 | -2/Protoforge | Spotted Striker 14717 | -2/Protoforge | Lost 3 allies 14717 | -2/Protoforge | Installed UFD Drillbomb at designated target 14717 | -2/Protoforge | UFD reported confirmed Drillbomb installation 14737 | -2/Protoforge | Spotted Executioner 14737 | -2/Protoforge | Spotted Executioner 14742 | -2/Protoforge | Found UFD Drillbomb 14745 | -2/Protoforge | Spotted Executioner 14751 | -2/Protoforge | Spotted Striker 14752 | -2/Protoforge | Spotted Executioner 14778 | -2/Protoforge | Installed UFD Drillbomb at designated target 14778 | -2/Protoforge | UFD reported confirmed Drillbomb installation 14779 | -2/Protoforge | UFD began Drillbomb countdown 14785 | -2/Protoforge | Lost 5 allies 14790 | -2/Protoforge | Spotted Executioner 14792 | -2/Protoforge | Spotted Striker 14801 | -2/Protoforge | Found Prototype Processor 14801 | -2/Protoforge | Identified Exp. Targeting Computer 14803 | -2/Protoforge | Found Exp. Core Analyzer 14871 | -2/Protoforge | Destroyed Striker 14879 | *** | Defending 0bPrime! Last Messages --------------- 14876_ Slug penetrates 02F13-K. 14876_ Slug penetrates G-73 Enforcer. 14876_ Slug penetrates 9U-BB3(E). 14877_ 0bP_NET: If you're in the wrong place at the wrong time, the wrong time being in just a moment, I'm sorry but prepare to die. 14877_ N-04 Retriever collects Prototype Reactor. 14877_ N-04 Retriever collects Prototype Leg. 14877_ N-04 Retriever collects Myomer Leg. 14877_ S-43 Plague destroyed. 14877_ G-73 Enforcer destroyed. 14877_ Slug penetrates H-88 Terminator. 14877_ Slug penetrates 02F13-K. 14878_ 0bP_NET: Otherwise, enjoy the show! 14878_ N-04 Retriever collects Powered Hammer. 14878_ Slug penetrates Forge Plexus. 14878_ Slug penetrates H-88 Terminator. [Achievement: Robotopia] [Achievement: Renaissance Bot] Map ----- +----------------------------------------------------+ | """""""""""""""""""""" %! ="" " #?????????? | | """"""""""""""""""""""%%=* "" " % ##?????????? | | """"""""""""""""""""" %*% " % #??????????? | | """"""""""""""""""""" ""% ! " % #??????????? | | """""""""""""""""""""% =%"= """ % #??????????? | | """""""""""""""""""" " ! %" % #??????????? | | """""""""""""""""""% "" n " " "" #??????????? | | """"""""""""""""""% " % " """" #??????????? | | """""""""""""""""% = " % % """ #??????????? | | """"""""""""""""% ! " "" #??????????? | | """"""""""""""" ""% "" #??????????? | | %%""""""""" n "" " #??????????? | | % % %% % n ""%"" """ """ #??????????? | | ""% "%%% == % "" "" "=["%#??????????? | | %"%%% %%%[% "% " " "%"" ###????????? | | % % % %%%h" """% ! % " """ "" <&#????????? | | % """ % %%==" "%"!!%="""E "&#????????? | | """" =[%*" *!! SS% "&#????????? | | % [[ %"" SS " """" "&#????????? | | % " "" E% % "&#????????? | | % " """" " % "" <<#????????? | | " "" """ " " "" ###????????? | | " " "" % "" " #??????????? | | % " #??????????? | | % """" """ " """ #??????????? | | """ " ""% @ #??????????? | | """""""""" " " !% " """""""#??????????? | | #########################+++###########??????????? | | ????????????????????#"" ""#????????????????? | | ??????????????????###" "###??????????????? | | ??????????????????#"" ""#??????????????? | | ??????????????????#"" ""#??????????????? | | ??????????????????#""! ""#??????????????? | | ??????????????????#"Y Y"#??????????????? | | ??????????????????#""! ""#??????????????? | | ??????????????????#"" ""#??????????????? | | ??????????????????#"" ""#??????????????? | | ??????????????????###" "###??????????????? | | ????????????????????#"" ""#????????????????? | | ????????????????????###"""Y"""###????????????????? | | ??????????????????????#"""""""#??????????????????? | | ??????????????????????#########??????????????????? | | ?????????????????????????????????????????????????? | | ?????????????????????????????????????????????????? | | ?????????????????????????????????????????????????? | | ?????????????????????????????????????????????????? | | ?????????????????????????????????????????????????? | | ?????????????????????????????????????????????????? | | ?????????????????????????????????????????????????? | | ?????????????????????????????????????????????????? | +----------------------------------------------------+ Best States ------------- Heat Dissipation 75 Energy Generation 45 Energy Capacity 850 Matter Stores 300 Matter Capacity 300 Sight Range 23 Robot Scan Range 20 Terrain Scan Density 10 Cloak Strength 3 Corruption Containment 8 Armor Coverage 800 Resistance: TH 30 Weapon Cycling 15 Phase Shifting 15 Evasion (%) 96 Targeting Accuracy 12 Melee Accuracy 22 Target Analysis 10 Core Analysis 8 Armor Integrity Analysis 50 Recoil Reduction 2 Particle Charging 25 Force Boost 20 Offensive Hacking 48 Defensive Hacking 36 Authchip Count 2 Item Schematics ----------------- Q-thruster | -5/Factory | Scanalyzed Assault Drone Bay | -4/Zhirov | Free Exp. Heat Sink | -4/Zhirov | Free Exp. Optical Array | -4/Zhirov | Free Imp. Arc Thrower | -4/Zhirov | Free Robot Schematics ------------------ G-73 Enforcer | -2/Protoforge | Hacked Fabricated ------------ Q-thruster | x2 | -3/Research Q-thruster | x2 | -3/Research Repaired ---------- Gravmag Array | 11% | -5/Factory Gamma Bomb Array | 4% | -5/Factory | Broken Q-thruster | 17% | -5/Factory Centrium Greatsword | 18% | -4/Factory Nuclear Pulse Array | 50% | -3/Research Studied --------- Nuclear Pulse Thruster | -6/Factory | Hacked Nuclear Pulse Array | -4/Factory | Hacked Field Propulsion Drive | -4/Factory | Hacked Mic. Fission Core | -4/Factory | Hacked Antimatter Reactor | -4/Factory | Hacked Q-thruster | -3/Quarantine | Hacked Mic. Antimatter Reactor | -3/Quarantine | Hacked Alien Tech Used ----------------- Integrated Reactor Phase Armor High-powered Transdimensional Reconstructor Dimensional Node Initializer Achievements -------------- Express Service Fine I'll Do It Myself Frankenstein Hulk Smash I Have Friends Everywhere Renaissance Bot Robotopia The Better Part Of Valor UFD MVP We Are One Challenges ------------ None Game ------ Seed ModifiedReactionAutocannon Manual? 0 Play Time 06:16:46 Cumulative 496.7 hours Start 2026.08.09 @ 00:09:37 End 2026.08.10 @ 02:19:11 Sessions 3 Manual Loads 0 Difficulty Rogue Special Mode None Game No. 254 Rogue 250 Adventurer 0 Explorer 4 Win Type 9 Total 28 Types 9/1/2/6/2/2/3/1/1/1 Lore% 73 Gallery% 75 Achievement% 65 Wizard Run 0 Options --------- Layout 1 ASCII 0 Keyboard 0 Movement Mouse Keybinds 0 Fullscreen 1 Font 24/Smallcaps Map View 50x35 Zoom Use 0% Tactical HUD 1 Map Filters NONE Filters NONE Steam 1 RUN: 42fd13f9-c1c2-447d-a3fa-5e6e724b126b